fUSD/lending_fUSD_20250519
["ID","MTS","AMOUNT","RATE_DAILY","PERIOD"]
[361588958,1747626648690,-400.0,0.00013808,2]
[361588959,1747626648699,-269.39129172,0.00013808,2]
[361588960,1747626648708,-400.0,0.00013808,2]
[361588961,1747626648719,-400.0,0.00013808,2]
[361588962,1747626648728,-419.48,0.00013808,2]
[361588963,1747626648737,-506.37,0.00013808,2]
[361588964,1747626648746,-808.63,0.00013808,2]
[361588965,1747626648756,-585.52,0.00013808,2]
[361588966,1747626648765,-400.0,0.00013808,2]
[361588967,1747626648775,-781.54,0.00013808,2]
[361588968,1747626648784,-400.0,0.00013808,2]
[361588969,1747626648794,-400.0,0.00013808,2]
[361588970,1747626648803,-400.0,0.00013808,2]
[361588971,1747626648815,-400.0,0.00013808,2]
[361588972,1747626648824,-400.0,0.00013808,2]
[361588973,1747626648834,-400.0,0.00013808,2]
[361588974,1747626648844,-400.0,0.00013808,2]
[361588975,1747626648854,-635.85,0.00013808,2]
[361588976,1747626648867,-514.82,0.00013808,2]
[361588977,1747626648876,-400.0,0.00013808,2]
[361588978,1747626648888,-400.0,0.00013808,2]
[361588979,1747626648898,-400.0,0.00013808,2]
[361588980,1747626648908,-605.17,0.00013808,2]
[361588981,1747626648917,-472.29,0.00013808,2]
[361588982,1747626648927,-400.0,0.00013808,2]
[361588983,1747626648937,-400.0,0.00013808,2]
[361588984,1747626648947,-1046.11,0.00013808,2]
[361588985,1747626648956,-701.41,0.00013808,2]
[361588986,1747626648966,-708.02,0.00013808,2]
[361588987,1747626648975,-412.55,0.00013808,2]
[361588988,1747626648984,-415.4,0.00013808,2]
[361588989,1747626648994,-408.66204469,0.00013808,2]
[361588990,1747626649004,-400.0,0.00013808,2]
[361588991,1747626649014,-400.0,0.00013808,2]
[361588992,1747626649024,-400.0,0.00013808,2]
[361588993,1747626649033,-400.0,0.00013808,2]
[361588994,1747626649042,-763.23,0.00013808,2]
[361588995,1747626649052,-400.0,0.00013808,2]
[361588996,1747626649061,-502.65,0.00013808,2]
[361588997,1747626649071,-400.0,0.00013808,2]
[361588998,1747626649081,-1139.44,0.00013808,2]
[361588999,1747626649090,-400.0,0.00013808,2]
[361589000,1747626649100,-400.0,0.00013808,2]
[361589001,1747626649109,-405.94,0.00013808,2]
[361589002,1747626649119,-547.79,0.00013808,2]
[361589003,1747626649128,-482.78,0.00013808,2]
[361589004,1747626649137,-495.08,0.00013808,2]
[361589005,1747626649147,-400.0,0.00013808,2]
[361589006,1747626649156,-605.25,0.00013808,2]
[361589007,1747626649166,-400.0,0.00013808,2]
[361589008,1747626649175,-560.97,0.00013808,2]
[361589009,1747626649184,-400.0,0.00013808,2]
[361589010,1747626649194,-1025.55,0.00013808,2]
[361589011,1747626649203,-479.8,0.00013808,2]
[361589012,1747626649213,-684.95,0.00013808,2]
[361589013,1747626649222,-400.0,0.00013808,2]
[361589014,1747626649231,-666.54,0.00013808,2]
[361589015,1747626649240,-439.35,0.00013808,2]
[361589016,1747626649250,-688.18,0.00013808,2]
[361589017,1747626649259,-470.32,0.00013808,2]
[361589018,1747626649268,-400.0,0.00013808,2]
[361589019,1747626649277,-986.89,0.00013808,2]
[361589020,1747626649287,-964.499002,0.00013808,2]
[361589021,1747626649296,-400.0,0.00013808,2]
[361589022,1747626649308,-982.75,0.00013808,2]
[361589023,1747626649317,-471.68,0.00013808,2]
[361589024,1747626649326,-400.0,0.00013808,2]
[361589025,1747626649335,-764.1,0.00013808,2]
[361589026,1747626649344,-538.46,0.00013808,2]
[361589027,1747626649354,-841.32,0.00013808,2]
[361589028,1747626649364,-622.32,0.00013808,2]
[361589029,1747626649373,-1303.2,0.00013808,2]
[361589030,1747626649383,-652.94,0.00013808,2]
[361589031,1747626649393,-486.19,0.00013808,2]
[361589032,1747626649402,-425.16,0.00013808,2]
[361589033,1747626649412,-424.49,0.00013808,2]
[361589034,1747626649421,-740.69,0.00013808,2]
[361589035,1747626649431,-880.72,0.00013808,2]
[361589036,1747626649441,-436.72,0.00013808,2]
[361589037,1747626649450,-424.73,0.00013808,2]
[361589038,1747626649459,-400.0,0.00013808,2]
[361589039,1747626649469,-504.41,0.00013808,2]
[361589040,1747626649775,-746.88,0.00013808,2]
[361589041,1747626649788,-412.63,0.00013808,2]
[361589042,1747626649797,-834.28,0.00013808,2]
[361589043,1747626649807,-3143.818133,0.00013808,2]
[361589044,1747626649816,-400.0,0.00013808,2]
[361589045,1747626649826,-1099.9,0.00013808,2]
[361589046,1747626649835,-412.38,0.00013808,2]
[361589047,1747626649844,-1082.956155,0.00013808,2]
[361589048,1747626649853,-1167.52,0.00013808,2]
[361589049,1747626649863,-400.0,0.00013808,2]
[361589050,1747626649872,-400.0,0.00013808,2]
[361589051,1747626649882,-487.63,0.00013808,2]
[361589052,1747626649893,-459.08,0.00013808,2]
[361589053,1747626649903,-654.13,0.00013808,2]
[361589054,1747626649913,-553.13,0.00013808,2]
[361589055,1747626649922,-497.24,0.00013808,2]
[361589056,1747626649931,-400.0,0.00013808,2]
[361589057,1747626649941,-400.0,0.00013808,2]
[361589058,1747626649951,-506.19,0.00013808,2]
[361589059,1747626649962,-198.96779388,0.00013808,2]
[361589060,1747626649971,-400.0,0.00013808,2]
[361589061,1747626649980,-400.0,0.00013808,2]
[361589062,1747626649989,-1011.3,0.00013808,2]
[361589063,1747626649998,-1420.31,0.00013808,2]
[361589064,1747626650007,-452.52,0.00013808,2]
[361589065,1747626650017,-400.0,0.00013808,2]
[361589066,1747626650026,-511.78,0.00013808,2]
[361589067,1747626650036,-971.49,0.00013808,2]
[361589068,1747626650045,-509.35,0.00013808,2]
[361589069,1747626650054,-400.0,0.00013808,2]
[361589070,1747626650064,-705.55,0.00013808,2]
[361589071,1747626650073,-400.0,0.00013808,2]
[361589072,1747626650082,-400.0,0.00013808,2]
[361589073,1747626650091,-1403.64,0.00013808,2]
[361589074,1747626650101,-1093.72,0.00013808,2]
[361589075,1747626650110,-302.854088,0.00013808,2]
[361589076,1747626650120,-542.16,0.00013808,2]
[361589077,1747626650129,-758.23,0.00013808,2]
[361589078,1747626650138,-407.74,0.00013808,2]
[361589079,1747626650148,-152.226075,0.00013808,2]
[361589080,1747626650157,-400.0,0.00013808,2]
[361589081,1747626650167,-529.12,0.00013808,2]
[361589082,1747626650177,-400.0,0.00013808,2]
[361589083,1747626650187,-419.4,0.00013808,2]
[361589084,1747626650196,-270.15569558,0.00013808,2]
[361589085,1747626650206,-400.0,0.00013808,2]
[361589086,1747626650215,-400.0,0.00013808,2]
[361589087,1747626650225,-426.39,0.00013808,2]
[361589088,1747626650234,-400.0,0.00013808,2]
[361589089,1747626650246,-462.25791582,0.00013808,2]
[361589090,1747626650256,-598.1,0.00013808,2]
[361589091,1747626650267,-2027.99,0.00013808,2]
[361589092,1747626650277,-400.0,0.00013808,2]
[361589093,1747626650286,-486.47,0.00013808,2]
[361589094,1747626650295,-400.0,0.00013808,2]
[361589095,1747626650307,-400.0,0.00013808,2]
[361589096,1747626650317,-431.06,0.00013808,2]
[361589097,1747626650326,-400.0,0.00013808,2]
[361589098,1747626650336,-400.0,0.00013808,2]
[361589099,1747626650346,-400.0,0.00013808,2]
[361589100,1747626650356,-400.0,0.00013808,2]
[361589101,1747626650365,-400.0,0.00013808,2]
[361589102,1747626650374,-400.0,0.00013808,2]
[361589103,1747626650385,-486.85,0.00013808,2]
[361589104,1747626650395,-1106.66,0.00013808,2]
[361589105,1747626650404,-400.0,0.00013808,2]
[361589106,1747626650413,-854.0,0.00013808,2]
[361589107,1747626650422,-400.0,0.00013808,2]
[361589108,1747626650432,-405.45327234,0.00013808,2]
[361589109,1747626650444,-1335.53,0.00013808,2]
[361589110,1747626650453,-400.0,0.00013808,2]
[361589111,1747626650463,-434.24,0.00013808,2]
[361589112,1747626650474,-400.0,0.00013808,2]
[361589113,1747626650484,-877.66,0.00013808,2]
[361589114,1747626650494,-1083.35,0.00013808,2]
[361589115,1747626650504,-825.26,0.00013808,2]
[361589116,1747626650514,-483.1,0.00013808,2]
[361589117,1747626650525,-964.82,0.00013808,2]
[361589118,1747626650535,-692.96,0.00013808,2]
[361589119,1747626650545,-1451.71,0.00013808,2]
[361589120,1747626650554,-400.0,0.00013808,2]
[361589121,1747626650564,-487.72,0.00013808,2]
[361589122,1747626650573,-400.0,0.00013808,2]
[361589123,1747626650583,-400.0,0.00013808,2]
[361589124,1747626650592,-400.0,0.00013808,2]
[361589125,1747626650602,-400.0,0.00013808,2]
[361589126,1747626650613,-400.0,0.00013808,2]
[361589127,1747626650623,-400.0,0.00013808,2]
[361589128,1747626650632,-460.15,0.00013808,2]
[361589129,1747626650642,-475.37,0.00013808,2]
[361589130,1747626650652,-400.0,0.00013808,2]
[361589131,1747626650662,-400.0,0.00013808,2]
[361589132,1747626650671,-400.0,0.00013808,2]
[361589133,1747626650681,-400.0,0.00013808,2]
[361589134,1747626650691,-1034.63,0.00013808,2]
[361589135,1747626650702,-510.05,0.00013808,2]
[361589136,1747626650712,-585.83,0.00013808,2]
[361589137,1747626650723,-400.0,0.00013808,2]
[361589138,1747626650733,-611.87,0.00013808,2]
[361589139,1747626650743,-400.0,0.00013808,2]
[361589140,1747626650752,-743.84,0.00013808,2]
[361589141,1747626650763,-400.0,0.00013808,2]
[361589142,1747626650773,-400.0,0.00013808,2]
[361589143,1747626650782,-400.0,0.00013808,2]
[361589144,1747626650791,-400.0,0.00013808,2]
[361589145,1747626650801,-441.62,0.00013808,2]
[361589146,1747626650810,-576.45,0.00013808,2]
[361589147,1747626650819,-400.0,0.00013808,2]
[361589148,1747626650828,-408.29,0.00013808,2]
[361589149,1747626650837,-422.2,0.00013808,2]
[361589150,1747626650847,-400.0,0.00013808,2]
[361589151,1747626650856,-400.0,0.00013808,2]
[361589152,1747626650866,-632.91,0.00013808,2]
[361589153,1747626650875,-705.8,0.00013808,2]
[361589154,1747626650884,-400.0,0.00013808,2]
[361589155,1747626650894,-400.0,0.00013808,2]
[361589156,1747626650903,-443.40595828,0.00013808,2]
[361589157,1747626650913,-400.0,0.00013808,2]
[361589158,1747626650923,-949.3,0.00013808,2]
[361589159,1747626650933,-870.77,0.00013808,2]
[361589160,1747626650943,-400.0,0.00013808,2]
[361589161,1747626650953,-400.0,0.00013808,2]
[361589162,1747626650962,-900.83,0.00013808,2]
[361589163,1747626650972,-400.0,0.00013808,2]
[361589164,1747626650981,-423.8,0.00013808,2]
[361589165,1747626650991,-400.0,0.00013808,2]
[361589166,1747626651001,-455.4592995,0.00013808,2]
[361589167,1747626651010,-400.0,0.00013808,2]
[361589168,1747626651019,-404.4,0.00013808,2]
[361589169,1747626651029,-754.85,0.00013808,2]
[361589170,1747626651039,-545.26,0.00013808,2]
[361589171,1747626651048,-554.0,0.00013808,2]
[361589172,1747626651057,-426.02,0.00013808,2]
[361589173,1747626651067,-1539.5,0.00013808,2]
[361589174,1747626651078,-400.0,0.00013808,2]
[361589175,1747626651088,-1041.03,0.00013808,2]
[361589176,1747626651097,-400.0,0.00013808,2]
[361589177,1747626651106,-782.06,0.00013808,2]
[361589178,1747626651116,-564.06,0.00013808,2]
[361589179,1747626651125,-400.0,0.00013808,2]
[361589180,1747626651134,-732.16,0.00013808,2]
[361589181,1747626651144,-643.53,0.00013808,2]
[361589182,1747626651153,-889.78,0.00013808,2]
[361589183,1747626651163,-719.75,0.00013808,2]
[361589184,1747626651172,-400.0,0.00013808,2]
[361589185,1747626651182,-401.52745855,0.00013808,2]
[361589186,1747626651192,-1195.26,0.00013808,2]
[361589187,1747626651202,-400.0,0.00013808,2]
[361589188,1747626651211,-400.0,0.00013808,2]
[361589189,1747626651221,-574.77,0.00013808,2]
[361589190,1747626651230,-400.0,0.00013808,2]
[361589191,1747626651239,-446.39,0.00013808,2]
[361589192,1747626651249,-838.07,0.00013808,2]
[361589193,1747626651259,-400.0,0.00013808,2]
[361589194,1747626651269,-400.0,0.00013808,2]
[361589195,1747626651278,-400.0,0.00013808,2]
[361589196,1747626651287,-400.0,0.00013808,2]
[361589197,1747626651296,-437.61,0.00013808,2]
[361589198,1747626651308,-400.0,0.00013808,2]
[361589199,1747626651317,-1978.38,0.00013808,2]
[361589200,1747626651328,-400.0,0.00013808,2]
[361589201,1747626651339,-852.62,0.00013808,2]
[361589202,1747626651350,-400.0,0.00013808,2]
[361589203,1747626651360,-1449.76,0.00013808,2]
[361589204,1747626651370,-400.0,0.00013808,2]
[361589205,1747626651379,-7293.25,0.00013808,2]
[361589206,1747626651388,-876.31,0.00013808,2]
[361589207,1747626651398,-642.35,0.00013808,2]
[361589208,1747626651407,-1331.68,0.00013808,2]
[361589209,1747626651417,-400.0,0.00013808,2]
[361589210,1747626651426,-959.88,0.00013808,2]
[361589211,1747626651435,-444.51,0.00013808,2]
[361589212,1747626651445,-410.64344174,0.00013808,2]
[361589213,1747626651454,-479.94,0.00013808,2]
[361589214,1747626651464,-615.04,0.00013808,2]
[361589215,1747626651473,-400.0,0.00013808,2]
[361589216,1747626651482,-634.52,0.00013808,2]
[361589217,1747626651491,-1016.41,0.00013808,2]
[361589218,1747626651501,-400.0,0.00013808,2]
[361589219,1747626651510,-1388.31,0.00013808,2]
[361589220,1747626651520,-400.0,0.00013808,2]
[361589221,1747626651529,-400.0,0.00013808,2]
[361589222,1747626651538,-400.0,0.00013808,2]
[361589223,1747626651547,-400.0,0.00013808,2]
[361589224,1747626651557,-400.0,0.00013808,2]
[361589225,1747626651567,-250.0,0.00013808,2]
[361589226,1747626651576,-1122.28,0.00013808,2]
[361589227,1747626651585,-445.99,0.00013808,2]
[361589228,1747626651595,-734.69,0.00013808,2]
[361589229,1747626651604,-1009.13,0.00013808,2]
[361589230,1747626651614,-606.24,0.00013808,2]
[361589231,1747626651623,-459.12,0.00013808,2]
[361589232,1747626651632,-400.0,0.00013808,2]
[361589233,1747626651641,-400.0,0.00013808,2]
[361589234,1747626651651,-400.0,0.00013808,2]
[361589235,1747626651661,-404.50401808,0.00013808,2]
[361589236,1747626651671,-1953.16,0.00013808,2]
[361589237,1747626651681,-150.05614974,0.00013808,2]
[361589238,1747626651691,-772.28,0.00013808,2]
[361589239,1747626651701,-1144.07,0.00013808,2]
[361589240,1747626651711,-630.64,0.00013808,2]
[361589241,1747626651720,-1127.85,0.00013808,2]
[361589242,1747626651730,-400.0,0.00013808,2]
[361589243,1747626651739,-400.0,0.00013808,2]
[361589244,1747626651748,-400.0,0.00013808,2]
[361589245,1747626651758,-609.46,0.00013808,2]
[361589246,1747626651767,-620.24,0.00013808,2]
[361589247,1747626651776,-538.03,0.00013808,2]
[361589248,1747626651786,-177.69627494,0.00013808,2]
[361589249,1747626651795,-334.65894554,0.00013808,2]
[361589250,1747626651805,-585.99,0.00013808,2]
[361589251,1747626651815,-811.56,0.00013808,2]
[361589252,1747626651824,-1695.71,0.00013808,2]
[361589253,1747626651833,-400.0,0.00013808,2]
[361589254,1747626651843,-558.44,0.00013808,2]
[361589255,1747626651853,-400.0,0.00013808,2]
[361589256,1747626651862,-6404.25,0.00013808,2]
[361589257,1747626651872,-400.0,0.00013808,2]
[361589258,1747626651881,-400.0,0.00013808,2]
[361589259,1747626651890,-427.53,0.00013808,2]
[361589260,1747626651900,-400.0,0.00013808,2]
[361589261,1747626651910,-400.0,0.00013808,2]
[361589262,1747626651922,-10371.93,0.00013808,2]
[361589263,1747626651931,-404.44713037,0.00013808,2]
[361589264,1747626651941,-406.07317435,0.00013808,2]
[361589265,1747626651951,-3529.42,0.00013808,2]
[361589266,1747626651961,-400.0,0.00013808,2]
[361589267,1747626651970,-400.0,0.00013808,2]
[361589268,1747626651980,-400.0,0.00013808,2]
[361589269,1747626651989,-400.0,0.00013808,2]
[361589270,1747626651998,-1126.63,0.00013808,2]
[361589271,1747626652008,-400.0,0.00013808,2]
[361589272,1747626652018,-400.0,0.00013808,2]
[361589273,1747626652027,-4282.55,0.00013808,2]
[361589274,1747626652036,-3824.01,0.00013808,2]
[361589275,1747626652045,-1346.66,0.00013808,2]
[361589276,1747626652055,-458.21,0.00013808,2]
[361589277,1747626652064,-597.13,0.00013808,2]
[361589278,1747626652074,-400.0,0.00013808,2]
[361589279,1747626652151,-408.97,0.00013808,2]
[361589280,1747626652161,-2344.28,0.00013808,2]
[361589281,1747626652172,-400.0,0.00013808,2]
[361589282,1747626652181,-1065.14,0.00013808,2]
[361589283,1747626652191,-7677.92,0.00013808,2]
[361589284,1747626652200,-400.0,0.00013808,2]
[361589285,1747626652210,-400.0,0.00013808,2]
[361589286,1747626652219,-400.0,0.00013808,2]
[361589287,1747626652229,-1378.96,0.00013808,2]
[361589288,1747626652238,-7826.19,0.00013808,2]
[361589289,1747626652247,-2500.66,0.00013808,2]
[361589290,1747626652257,-558.26,0.00013808,2]
[361589291,1747626652267,-400.0,0.00013808,2]
[361589292,1747626652277,-1033.22,0.00013808,2]
[361589293,1747626652288,-400.0,0.00013808,2]
[361589294,1747626652298,-1754.05,0.00013808,2]
[361589295,1747626652310,-965.04,0.00013808,2]
[361589296,1747626652321,-551.93,0.00013808,2]
[361589297,1747626652333,-1011.45,0.00013808,2]
[361589298,1747626652343,-400.0,0.00013808,2]
[361589299,1747626652354,-849.09,0.00013808,2]
[361589300,1747626652366,-1130.43,0.00013808,2]
[361589301,1747626652375,-670.84,0.00013808,2]
[361589302,1747626652385,-400.0,0.00013808,2]
[361589303,1747626652394,-408.8949511,0.00013808,2]
[361589304,1747626652403,-3609.37,0.00013808,2]
[361589305,1747626652413,-829.5,0.00013808,2]
[361589306,1747626652422,-400.0,0.00013808,2]
[361589307,1747626652431,-1719.97,0.00013808,2]
[361589308,1747626652440,-1389.29,0.00013808,2]
[361589309,1747626652449,-2461.7,0.00013808,2]
[361589310,1747626652459,-400.0,0.00013808,2]
[361589311,1747626652467,-400.0,0.00013808,2]
[361589312,1747626652476,-400.0,0.00013808,2]
[361589313,1747626652485,-414.15091604,0.00013808,2]
[361589314,1747626652494,-400.0,0.00013808,2]
[361589315,1747626652503,-606.46,0.00013808,2]
[361589316,1747626652512,-1188.89,0.00013808,2]
[361589317,1747626652521,-460.88,0.00013808,2]
[361589318,1747626652530,-1061.42,0.00013808,2]
[361589319,1747626652539,-400.0,0.00013808,2]
[361589320,1747626652548,-646.67,0.00013808,2]
[361589321,1747626652557,-1195.63,0.00013808,2]
[361589322,1747626652566,-538.97,0.00013808,2]
[361589323,1747626652575,-657.13,0.00013808,2]
[361589324,1747626652583,-1008.57,0.00013808,2]
[361589325,1747626652593,-879.8,0.00013808,2]
[361589326,1747626652602,-698.81,0.00013808,2]
[361589327,1747626652610,-573.88,0.00013808,2]
[361589328,1747626652619,-400.0,0.00013808,2]
[361589329,1747626652629,-1233.76,0.00013808,2]
[361589330,1747626652637,-400.0,0.00013808,2]
[361589331,1747626652646,-1206.07,0.00013808,2]
[361589332,1747626652655,-636.06,0.00013808,2]
[361589333,1747626652665,-400.0,0.00013808,2]
[361589334,1747626652674,-464.43,0.00013808,2]
[361589335,1747626652683,-4447.87,0.00013808,2]
[361589336,1747626652692,-709.08,0.00013808,2]
[361589337,1747626652701,-78820.16,0.00013808,2]
[361589338,1747626652710,-400.0,0.00013808,2]
[361589339,1747626652719,-1382.21,0.00013808,2]
[361589340,1747626652728,-536.04,0.00013808,2]
[361589341,1747626652737,-542.48,0.00013808,2]
[361589342,1747626652746,-963.87,0.00013808,2]
[361589343,1747626652755,-400.0,0.00013808,2]
[361589344,1747626652764,-400.0,0.00013808,2]
[361589345,1747626652774,-400.0,0.00013808,2]
[361589346,1747626652783,-512.91,0.00013808,2]
[361589347,1747626652792,-400.0,0.00013808,2]
[361589348,1747626652801,-400.0,0.00013808,2]
[361589349,1747626652811,-3297.1,0.00013808,2]
[361589350,1747626652820,-1138.08,0.00013808,2]
[361589351,1747626652829,-2283.47,0.00013808,2]
[361589352,1747626652839,-863.9,0.00013808,2]
[361589353,1747626652848,-1164.95,0.00013808,2]
[361589354,1747626652857,-400.0,0.00013808,2]
[361589355,1747626652866,-1122.34,0.00013808,2]
[361589356,1747626652875,-410.78,0.00013808,2]
[361589357,1747626652884,-1585.38,0.00013808,2]
[361589358,1747626652894,-400.0,0.00013808,2]
[361589359,1747626652903,-822.81,0.00013808,2]
[361589360,1747626652913,-400.0,0.00013808,2]
[361589361,1747626652922,-409.50971256,0.00013808,2]
[361589362,1747626652932,-400.0,0.00013808,2]
[361589363,1747626652941,-950.55,0.00013808,2]
[361589364,1747626652950,-1988.15,0.00013808,2]
[361589365,1747626652958,-400.0,0.00013808,2]
[361589366,1747626652967,-665.7,0.00013808,2]
[361589367,1747626652976,-540.4,0.00013808,2]
[361589368,1747626652985,-441.11,0.00013808,2]
[361589369,1747626652994,-825.06,0.00013808,2]
[361589370,1747626653002,-830.42,0.00013808,2]
[361589371,1747626653011,-1237.08,0.00013808,2]
[361589372,1747626653020,-2346.97,0.00013808,2]
[361589373,1747626653029,-400.0,0.00013808,2]
[361589374,1747626653038,-400.0,0.00013808,2]
[361589375,1747626653046,-159.75034669,0.00013808,2]
[361589376,1747626653055,-400.0,0.00013808,2]
[361589377,1747626653064,-412.3493017,0.00013808,2]
[361589378,1747626653074,-832.3,0.00013808,2]
[361589379,1747626653083,-7509.87,0.00013808,2]
[361589380,1747626653093,-2556.2,0.00013808,2]
[361589381,1747626653103,-400.0,0.00013808,2]
[361589382,1747626653111,-400.0,0.00013808,2]
[361589383,1747626653121,-400.0,0.00013808,2]
[361589384,1747626653129,-400.0,0.00013808,2]
[361589385,1747626653138,-609.46,0.00013808,2]
[361589386,1747626653147,-1590.9,0.00013808,2]
[361589387,1747626653157,-404.30599178,0.00013808,2]
[361589388,1747626653167,-400.0,0.00013808,2]
[361589389,1747626653177,-400.0,0.00013808,2]
[361589390,1747626653186,-1904.18,0.00013808,2]
[361589391,1747626653196,-1228.85,0.00013808,2]
[361589392,1747626653205,-400.0,0.00013808,2]
[361589393,1747626653214,-409.36,0.00013808,2]
[361589394,1747626653223,-728.55,0.00013808,2]
[361589395,1747626653232,-400.0,0.00013808,2]
[361589396,1747626653242,-400.0,0.00013808,2]
[361589397,1747626653251,-10968.51,0.00013808,2]
[361589398,1747626653261,-904.55,0.00013808,2]
[361589399,1747626653270,-2137.38,0.00013808,2]
[361589400,1747626653279,-4280.11,0.00013808,2]
[361589401,1747626653288,-1200.85,0.00013808,2]
[361589402,1747626653297,-400.0,0.00013808,2]
[361589403,1747626653308,-669.43,0.00013808,2]
[361589404,1747626653318,-400.0,0.00013808,2]
[361589405,1747626653328,-433.83808022,0.00013808,2]
[361589406,1747626653338,-400.0,0.00013808,2]
[361589407,1747626653350,-400.0,0.00013808,2]
[361589408,1747626653361,-400.0,0.00013808,2]
[361589409,1747626653370,-7180.6,0.00013808,2]
[361589410,1747626653380,-2516.64,0.00013808,2]
[361589411,1747626653389,-416.1082134,0.00013808,2]
[361589412,1747626653399,-400.0,0.00013808,2]
[361589413,1747626653408,-400.0,0.00013808,2]
[361589414,1747626653418,-400.0,0.00013808,2]
[361589415,1747626653427,-437.95,0.00013808,2]
[361589416,1747626653437,-2440.97,0.00013808,2]
[361589417,1747626653446,-2037.96,0.00013808,2]
[361589418,1747626653455,-665.89,0.00013808,2]
[361589419,1747626653464,-5307.95,0.00013808,2]
[361589420,1747626653474,-622.11,0.00013808,2]
[361589421,1747626653485,-400.0,0.00013808,2]
[361589422,1747626653494,-469.70297825,0.00013808,2]
[361589423,1747626653503,-1419.61,0.00013808,2]
[361589424,1747626653512,-1837.58,0.00013808,2]
[361589425,1747626653522,-3852.77,0.00013808,2]
[361589426,1747626653532,-400.0,0.00013808,2]
[361589427,1747626653541,-407.76,0.00013808,2]
[361589428,1747626653550,-458.84,0.00013808,2]
[361589429,1747626653560,-1863.87,0.00013808,2]
[361589430,1747626653569,-400.0,0.00013808,2]
[361589431,1747626653579,-400.0,0.00013808,2]
[361589432,1747626653588,-759.57,0.00013808,2]
[361589433,1747626653598,-1000.0,0.00013808,2]
[361589434,1747626653608,-8939.67,0.00013808,2]
[361589435,1747626653617,-400.0,0.00013808,2]
[361589436,1747626653626,-709.78,0.00013808,2]
[361589437,1747626653636,-1228.88,0.00013808,2]
[361589438,1747626653645,-1548.49,0.00013808,2]
[361589439,1747626653654,-419.55705749,0.00013808,2]
[361589440,1747626653665,-400.0,0.00013808,2]
[361589441,1747626653674,-5544.94,0.00013808,2]
[361589442,1747626653683,-2602.31,0.00013808,2]
[361589443,1747626653693,-400.0,0.00013808,2]
[361589444,1747626653702,-400.0,0.00013808,2]
[361589445,1747626653711,-1037.42,0.00013808,2]
[361589446,1747626653720,-400.0,0.00013808,2]
[361589447,1747626653729,-400.0,0.00013808,2]
[361589448,1747626653739,-403.13919923,0.00013808,2]
[361589449,1747626653748,-451.55,0.00013808,2]
[361589450,1747626653758,-1890.06,0.00013808,2]
[361589451,1747626653767,-1374.84,0.00013808,2]
[361589452,1747626653777,-402.38,0.00013808,2]
[361589453,1747626653787,-488.39,0.00013808,2]
[361589454,1747626653796,-400.0,0.00013808,2]
[361589455,1747626653805,-450.0,0.00013808,2]
[361589456,1747626653815,-2279.2,0.00013808,2]
[361589457,1747626653824,-15888.01,0.00013808,2]